[Event "Late-Titled-Tuesday-Blitz-February-06-2024"]
[Site "Chess.com"]
[Date "2024.02.06"]
[Round "4"]
[White "Vicmary2005"]
[Black "jinxy2009"]
[Result "1-0"]
[WhiteElo "2013"]
[BlackElo "2236"]
[TimeControl "180+1"]
[EndTime "14:39:50 PST"]
[Termination "Vicmary2005 won by resignation"]

1. e4 {[%clk 0:03:00.9]} 1... c5 {[%clk 0:02:56.3]} 2. Nf3 {[%clk 0:03:00.4]}
2... Nc6 {[%clk 0:02:55.2]} 3. c3 {[%clk 0:03:00.3]} 3... Nf6 {[%clk 0:02:54.5]}
4. e5 {[%clk 0:02:59.8]} 4... Nd5 {[%clk 0:02:53.9]} 5. d4 {[%clk 0:03:00]} 5...
cxd4 {[%clk 0:02:53.9]} 6. cxd4 {[%clk 0:03:00.9]} 6... d6 {[%clk 0:02:54]} 7.
Bc4 {[%clk 0:02:59.6]} 7... Nb6 {[%clk 0:02:53.5]} 8. Bb5 {[%clk 0:02:59.3]}
8... Bd7 {[%clk 0:02:52.3]} 9. O-O {[%clk 0:02:52.3]} 9... dxe5 {[%clk 0:02:37]}
10. Bxc6 {[%clk 0:02:39.3]} 10... Bxc6 {[%clk 0:02:34.7]} 11. Nxe5 {[%clk
0:02:39.5]} 11... Bd5 {[%clk 0:02:34.8]} 12. Nc3 {[%clk 0:02:38.5]} 12... e6
{[%clk 0:02:30.9]} 13. Re1 {[%clk 0:02:35.1]} 13... Be7 {[%clk 0:02:23.5]} 14.
Re3 {[%clk 0:02:04.9]} 14... Rc8 {[%clk 0:01:52]} 15. Qh5 {[%clk 0:01:56.4]}
15... g6 {[%clk 0:01:43]} 16. Qh6 {[%clk 0:01:50.5]} 16... Bf8 {[%clk
0:01:27.5]} 17. Qf4 {[%clk 0:01:45.5]} 17... Rc7 {[%clk 0:01:26.7]} 18. Bd2
{[%clk 0:01:27.2]} 18... Bg7 {[%clk 0:01:25.8]} 19. Nb5 {[%clk 0:01:07.6]} 19...
Re7 {[%clk 0:01:12.5]} 20. Bb4 {[%clk 0:01:04.3]} 20... O-O {[%clk 0:01:10.9]}
21. Qh4 {[%clk 0:00:42.1]} 21... Rd7 {[%clk 0:00:31.2]} 22. Qg4 {[%clk
0:00:36.8]} 22... Bxe5 {[%clk 0:00:20.9]} 23. Bxf8 {[%clk 0:00:35.6]} 23...
Bxh2+ {[%clk 0:00:15.3]} 24. Kxh2 {[%clk 0:00:32.2]} 24... Qxf8 {[%clk
0:00:15.9]} 25. Rh3 {[%clk 0:00:28.5]} 25... a6 {[%clk 0:00:15]} 26. Nc3 {[%clk
0:00:27.8]} 26... f5 {[%clk 0:00:10.9]} 27. Qf4 {[%clk 0:00:25.6]} 27... Qf6
{[%clk 0:00:10.5]} 28. Rd1 {[%clk 0:00:24.1]} 28... Kg7 {[%clk 0:00:09.7]} 29.
Qe5 {[%clk 0:00:22]} 29... Qxe5+ {[%clk 0:00:09.3]} 30. dxe5 {[%clk 0:00:22.9]}
30... Kf7 {[%clk 0:00:09.2]} 31. Rxh7+ {[%clk 0:00:22.5]} 31... Ke8 {[%clk
0:00:08.7]} 32. Rxd7 {[%clk 0:00:22.3]} 32... Kxd7 {[%clk 0:00:09.6]} 33. Nxd5
{[%clk 0:00:21.6]} 33... Nxd5 {[%clk 0:00:09.3]} 34. f3 {[%clk 0:00:19.8]} 34...
g5 {[%clk 0:00:09.1]} 35. g4 {[%clk 0:00:17.8]} 35... f4 {[%clk 0:00:08.5]} 36.
Kg2 {[%clk 0:00:16.7]} 36... Ke7 {[%clk 0:00:08.5]} 37. Kf2 {[%clk 0:00:16.3]}
37... Nb4 {[%clk 0:00:05.3]} 38. a3 {[%clk 0:00:13.4]} 38... Nc6 {[%clk
0:00:05.2]} 39. Re1 {[%clk 0:00:10.5]} 39... Kf7 {[%clk 0:00:03.9]} 40. Rd1
{[%clk 0:00:09]} 40... Ke7 {[%clk 0:00:03.7]} 41. Rh1 {[%clk 0:00:08.9]} 41...
Nxe5 {[%clk 0:00:02.7]} 42. Rh7+ {[%clk 0:00:09]} 42... Nf7 {[%clk 0:00:02.9]}
43. Rg7 {[%clk 0:00:08.4]} 43... Kf6 {[%clk 0:00:03]} 44. Rg8 {[%clk 0:00:08]}
44... Nd6 {[%clk 0:00:02.1]} 45. Rd8 {[%clk 0:00:07.7]} 45... Ke7 {[%clk
0:00:01.3]} 46. Rg8 {[%clk 0:00:07.2]} 46... Kf6 {[%clk 0:00:01.7]} 47. Rb8
{[%clk 0:00:06.6]} 47... Ke5 {[%clk 0:00:01.3]} 48. b4 {[%clk 0:00:04.6]} 48...
Kf6 {[%clk 0:00:01.6]} 49. Rd8 {[%clk 0:00:04.1]} 49... e5 {[%clk 0:00:02.1]}
50. Rxd6+ {[%clk 0:00:03.9]} 50... Ke7 {[%clk 0:00:03]} 51. Rg6 {[%clk
0:00:04.1]} 1-0

[Event "Late-Titled-Tuesday-Blitz-February-06-2024"]
[Site "Chess.com"]
[Date "2024.02.06"]
[Round "4"]
[White "koziororo"]
[Black "ChadBiryani"]
[Result "1-0"]
[WhiteElo "2621"]
[BlackElo "2458"]
[TimeControl "180+1"]
[EndTime "14:39:53 PST"]
[Termination "koziororo won by resignation"]

1. Nc3 {[%clk 0:03:00.9]} 1... f5 {[%clk 0:02:56.9]} 2. g4 {[%clk 0:02:50.7]}
2... d6 {[%clk 0:02:51.6]} 3. gxf5 {[%clk 0:02:50.4]} 3... Bxf5 {[%clk
0:02:51.9]} 4. e4 {[%clk 0:02:50.9]} 4... Bd7 {[%clk 0:02:47.5]} 5. Bc4 {[%clk
0:02:50.8]} 5... Nf6 {[%clk 0:02:47.2]} 6. d4 {[%clk 0:02:49.7]} 6... e5 {[%clk
0:02:45.1]} 7. dxe5 {[%clk 0:02:48.7]} 7... dxe5 {[%clk 0:02:45.5]} 8. Nf3
{[%clk 0:02:49.5]} 8... Nc6 {[%clk 0:02:45.8]} 9. Ng5 {[%clk 0:02:36.6]} 9...
Bg4 {[%clk 0:02:33.2]} 10. Bf7+ {[%clk 0:02:31.1]} 10... Ke7 {[%clk 0:02:31]}
11. Nd5+ {[%clk 0:02:31.7]} 11... Qxd5 {[%clk 0:02:25.9]} 12. Qxd5 {[%clk
0:02:01.4]} 12... Nxd5 {[%clk 0:02:24.1]} 13. Bxd5 {[%clk 0:02:02.3]} 13... Nd4
{[%clk 0:02:18.1]} 14. Nf7 {[%clk 0:01:55]} 14... Nxc2+ {[%clk 0:02:11.2]} 15.
Kf1 {[%clk 0:01:53.2]} 15... c6 {[%clk 0:02:06.2]} 16. Bg5+ {[%clk 0:01:52.3]}
16... Ke8 {[%clk 0:02:02.7]} 17. Rc1 {[%clk 0:01:42.4]} 17... cxd5 {[%clk
0:02:01.2]} 18. Nxh8 {[%clk 0:01:42.1]} 18... Nd4 {[%clk 0:01:39.8]} 19. exd5
{[%clk 0:01:25.4]} 19... Bf3 {[%clk 0:01:31.4]} 20. Rg1 {[%clk 0:01:24.8]} 20...
Ne2 {[%clk 0:01:31.4]} 21. Rc7 {[%clk 0:01:25.3]} 21... Nxg1 {[%clk 0:01:29.2]}
22. Kxg1 {[%clk 0:01:25]} 22... Bd6 {[%clk 0:01:24.3]} 23. Rxg7 {[%clk
0:01:22.9]} 23... Bxd5 {[%clk 0:01:06.4]} 24. Rxh7 {[%clk 0:01:22.5]} 24... Rc8
{[%clk 0:01:02.5]} 25. Ng6 {[%clk 0:01:21.3]} 25... Rc2 {[%clk 0:00:52.3]} 26.
Nxe5 {[%clk 0:01:06.5]} 26... Rxb2 {[%clk 0:00:27.1]} 27. Rh8+ {[%clk
0:01:06.5]} 27... Bf8 {[%clk 0:00:27.8]} 28. h4 {[%clk 0:01:07.1]} 28... Rxa2
{[%clk 0:00:15.9]} 29. Bh6 {[%clk 0:01:05.6]} 29... Ra1+ {[%clk 0:00:12.8]} 30.
Kh2 {[%clk 0:01:05.1]} 30... Rh1+ {[%clk 0:00:12.2]} 31. Kg3 {[%clk 0:01:05.1]}
31... Rg1+ {[%clk 0:00:12.3]} 32. Kf4 {[%clk 0:01:05]} 32... Rg8 {[%clk
0:00:13]} 33. Rh7 {[%clk 0:01:01.4]} 33... Bxh6+ {[%clk 0:00:12.4]} 34. Rxh6
{[%clk 0:01:02.3]} 34... Rf8+ {[%clk 0:00:11.2]} 35. Ke3 {[%clk 0:01:01.9]}
35... a5 {[%clk 0:00:10.9]} 36. Rd6 {[%clk 0:00:46.2]} 36... Bb3 {[%clk
0:00:07.6]} 37. Rb6 {[%clk 0:00:43.8]} 37... a4 {[%clk 0:00:08.2]} 38. Rxb7
{[%clk 0:00:40.9]} 38... Rf5 {[%clk 0:00:08.8]} 39. f4 {[%clk 0:00:39.1]} 39...
Rh5 {[%clk 0:00:08.5]} 40. Kd4 {[%clk 0:00:35.1]} 40... Kd8 {[%clk 0:00:08.4]}
41. Ra7 {[%clk 0:00:16.4]} 41... Rxh4 {[%clk 0:00:08.2]} 42. Nc6+ {[%clk
0:00:16.9]} 42... Kc8 {[%clk 0:00:07.6]} 43. Ke5 {[%clk 0:00:17.4]} 43... Rh6
{[%clk 0:00:04.3]} 44. Nd4 {[%clk 0:00:16.8]} 44... Rh5+ {[%clk 0:00:03.4]} 45.
f5 {[%clk 0:00:16.8]} 45... Rh1 {[%clk 0:00:02.8]} 46. f6 {[%clk 0:00:15.5]}
46... Re1+ {[%clk 0:00:02.5]} 47. Kd6 {[%clk 0:00:15.4]} 47... Rd1 {[%clk
0:00:02.8]} 48. Kc5 {[%clk 0:00:15.3]} 48... Rc1+ {[%clk 0:00:02.8]} 49. Kd6
{[%clk 0:00:15.6]} 49... Rd1 {[%clk 0:00:02.9]} 50. Ke5 {[%clk 0:00:15.5]} 50...
Re1+ {[%clk 0:00:03.1]} 51. Kf5 {[%clk 0:00:16]} 51... Rf1+ {[%clk 0:00:03.7]}
52. Kg6 {[%clk 0:00:16.5]} 52... Kb8 {[%clk 0:00:04]} 53. Rh7 {[%clk 0:00:14.7]}
53... a3 {[%clk 0:00:03.7]} 54. Nxb3 {[%clk 0:00:14.5]} 54... a2 {[%clk
0:00:04]} 55. Rh2 {[%clk 0:00:13.6]} 55... Rf3 {[%clk 0:00:03.5]} 56. Rxa2
{[%clk 0:00:12.2]} 56... Rxb3 {[%clk 0:00:04.2]} 57. Rf2 {[%clk 0:00:12.5]}
57... Rg3+ {[%clk 0:00:03.9]} 58. Kh5 {[%clk 0:00:12.7]} 58... Kc7 {[%clk
0:00:04.1]} 59. f7 {[%clk 0:00:13.1]} 59... Rh3+ {[%clk 0:00:02.2]} 60. Kg4
{[%clk 0:00:13.4]} 60... Rh8 {[%clk 0:00:02.4]} 61. f8=Q {[%clk 0:00:14.3]} 1-0

[Event "Late-Titled-Tuesday-Blitz-February-06-2024"]
[Site "Chess.com"]
[Date "2024.02.06"]
[Round "4"]
[White "Dzidzik2203"]
[Black "el008"]
[Result "1/2-1/2"]
[WhiteElo "2382"]
[BlackElo "2534"]
[TimeControl "180+1"]
[EndTime "14:39:54 PST"]
[Termination "Game drawn - insufficient material"]

1. b3 {[%clk 0:03:00.9]} 1... b6 {[%clk 0:03:00.9]} 2. Bb2 {[%clk 0:02:59.7]}
2... Bb7 {[%clk 0:03:01.8]} 3. Nf3 {[%clk 0:02:56.4]} 3... e6 {[%clk 0:03:01.6]}
4. c4 {[%clk 0:02:51.6]} 4... Nf6 {[%clk 0:03:01.8]} 5. e3 {[%clk 0:02:50]} 5...
g6 {[%clk 0:03:02.3]} 6. Be2 {[%clk 0:02:47.1]} 6... Bg7 {[%clk 0:03:03]} 7. O-O
{[%clk 0:02:47.2]} 7... O-O {[%clk 0:03:03.6]} 8. Nc3 {[%clk 0:02:45.9]} 8... d5
{[%clk 0:03:02.3]} 9. Rc1 {[%clk 0:02:41.9]} 9... c5 {[%clk 0:03:01.1]} 10. cxd5
{[%clk 0:02:41.3]} 10... Nxd5 {[%clk 0:03:00.7]} 11. Qc2 {[%clk 0:02:40.8]}
11... Nc6 {[%clk 0:02:55.4]} 12. Rfd1 {[%clk 0:02:39.5]} 12... Rc8 {[%clk
0:02:45.8]} 13. h4 {[%clk 0:02:35.9]} 13... h5 {[%clk 0:02:40.9]} 14. Nxd5
{[%clk 0:02:35.4]} 14... Qxd5 {[%clk 0:02:37.5]} 15. Bxg7 {[%clk 0:02:35.1]}
15... Kxg7 {[%clk 0:02:38.4]} 16. Qb2+ {[%clk 0:02:31.8]} 16... Kg8 {[%clk
0:02:38.2]} 17. Qf6 {[%clk 0:02:12.2]} 17... Qf5 {[%clk 0:02:32.1]} 18. Qxf5
{[%clk 0:02:06.5]} 18... exf5 {[%clk 0:02:33]} 19. d4 {[%clk 0:01:48.2]} 19...
cxd4 {[%clk 0:02:33.9]} 20. Nxd4 {[%clk 0:01:48.4]} 20... Nxd4 {[%clk 0:02:32]}
21. exd4 {[%clk 0:01:49.3]} 21... Rxc1 {[%clk 0:02:28.1]} 22. Rxc1 {[%clk
0:01:48.7]} 22... Rd8 {[%clk 0:02:29]} 23. Rc7 {[%clk 0:01:44.9]} 23... Be4
{[%clk 0:02:27.3]} 24. Bc4 {[%clk 0:01:27.1]} 24... Bd5 {[%clk 0:02:00.5]} 25.
Bxd5 {[%clk 0:01:05.3]} 25... Rxd5 {[%clk 0:02:01.4]} 26. Rxa7 {[%clk
0:01:05.5]} 26... Rxd4 {[%clk 0:02:02]} 27. Rb7 {[%clk 0:01:06.1]} 27... Rb4
{[%clk 0:02:01.4]} 28. g3 {[%clk 0:01:01.9]} 28... Kg7 {[%clk 0:01:59.4]} 29. f4
{[%clk 0:00:59.6]} 29... Kf6 {[%clk 0:01:55]} 30. Kf2 {[%clk 0:00:59.4]} 30...
Ke6 {[%clk 0:01:37.3]} 31. Ke3 {[%clk 0:00:59.4]} 31... f6 {[%clk 0:01:25.3]}
32. Rg7 {[%clk 0:00:47.4]} 32... Re4+ {[%clk 0:01:22.7]} 33. Kd3 {[%clk
0:00:33.3]} 33... Re1 {[%clk 0:01:18.7]} 34. Rxg6 {[%clk 0:00:31.1]} 34... Kf7
{[%clk 0:01:19]} 35. Rh6 {[%clk 0:00:27.9]} 35... Re8 {[%clk 0:01:16.6]} 36.
Rh7+ {[%clk 0:00:25.2]} 36... Ke6 {[%clk 0:01:16]} 37. Rb7 {[%clk 0:00:25.1]}
37... Rg8 {[%clk 0:01:16]} 38. Rxb6+ {[%clk 0:00:24.8]} 38... Ke7 {[%clk
0:01:16.3]} 39. Rb7+ {[%clk 0:00:23.9]} 39... Ke6 {[%clk 0:01:16.5]} 40. Kd4
{[%clk 0:00:24.5]} 40... Rxg3 {[%clk 0:01:17.4]} 41. a4 {[%clk 0:00:24.1]} 41...
Rf3 {[%clk 0:01:15.5]} 42. a5 {[%clk 0:00:24.3]} 42... Rxf4+ {[%clk 0:01:16.1]}
43. Kc5 {[%clk 0:00:24.1]} 43... Rf1 {[%clk 0:01:15.2]} 44. a6 {[%clk
0:00:22.1]} 44... Ra1 {[%clk 0:01:15.3]} 45. Kb5 {[%clk 0:00:20.5]} 45... f4
{[%clk 0:01:15.2]} 46. Rb6+ {[%clk 0:00:17.9]} 46... Ke5 {[%clk 0:01:13.5]} 47.
Rc6 {[%clk 0:00:18]} 47... f3 {[%clk 0:01:13.5]} 48. Rc2 {[%clk 0:00:18.6]}
48... Kf4 {[%clk 0:01:11.3]} 49. Kb6 {[%clk 0:00:18.5]} 49... Kg3 {[%clk
0:01:11.3]} 50. b4 {[%clk 0:00:18.9]} 50... f2 {[%clk 0:01:05.5]} 51. Rxf2
{[%clk 0:00:19.1]} 51... Kxf2 {[%clk 0:01:06.4]} 52. b5 {[%clk 0:00:19.6]} 52...
f5 {[%clk 0:01:07]} 53. Ka7 {[%clk 0:00:18.3]} 53... f4 {[%clk 0:01:06.6]} 54.
b6 {[%clk 0:00:19.1]} 54... f3 {[%clk 0:01:07]} 55. b7 {[%clk 0:00:19.9]} 55...
Rb1 {[%clk 0:01:06]} 56. b8=Q {[%clk 0:00:20.6]} 56... Rxb8 {[%clk 0:01:06.8]}
57. Kxb8 {[%clk 0:00:21.5]} 57... Kg3 {[%clk 0:01:03]} 58. a7 {[%clk 0:00:22.4]}
58... f2 {[%clk 0:01:03.8]} 59. a8=Q {[%clk 0:00:21.3]} 59... f1=Q {[%clk
0:01:04.7]} 60. Qa3+ {[%clk 0:00:18.9]} 60... Kxh4 {[%clk 0:01:04.5]} 61. Qe7+
{[%clk 0:00:19.2]} 61... Kg4 {[%clk 0:01:04]} 62. Qg7+ {[%clk 0:00:19]} 62...
Kh3 {[%clk 0:01:04.1]} 63. Qd7+ {[%clk 0:00:18.1]} 63... Kh2 {[%clk 0:00:59.9]}
64. Qd6+ {[%clk 0:00:16.2]} 64... Kg2 {[%clk 0:00:54.6]} 65. Qg6+ {[%clk
0:00:13.7]} 65... Kf2 {[%clk 0:00:53.7]} 66. Qf5+ {[%clk 0:00:13.5]} 66... Ke1
{[%clk 0:00:51.7]} 67. Qxh5 {[%clk 0:00:13.8]} 67... Qf8+ {[%clk 0:00:48]} 68.
Kc7 {[%clk 0:00:13.4]} 68... Qg7+ {[%clk 0:00:48.5]} 69. Kd6 {[%clk 0:00:13.3]}
69... Qg3+ {[%clk 0:00:47.4]} 70. Kd5 {[%clk 0:00:13.2]} 70... Qb3+ {[%clk
0:00:47.4]} 71. Kd6 {[%clk 0:00:10.1]} 71... Qb8+ {[%clk 0:00:47]} 72. Ke7
{[%clk 0:00:09.9]} 72... Qb4+ {[%clk 0:00:46.4]} 73. Kf6 {[%clk 0:00:09.7]}
73... Qf8+ {[%clk 0:00:47.1]} 74. Kg5 {[%clk 0:00:10]} 74... Qc5+ {[%clk
0:00:47.1]} 75. Kh4 {[%clk 0:00:10.3]} 75... Qg1 {[%clk 0:00:46.6]} 76. Qg4
{[%clk 0:00:10]} 76... Qh1+ {[%clk 0:00:43.7]} 77. Kg5 {[%clk 0:00:09.8]} 77...
Qh8 {[%clk 0:00:42.2]} 78. Qh4+ {[%clk 0:00:09.5]} 78... Qxh4+ {[%clk 0:00:42]}
79. Kxh4 {[%clk 0:00:10.4]} 1/2-1/2

[Event "Late-Titled-Tuesday-Blitz-February-06-2024"]
[Site "Chess.com"]
[Date "2024.02.06"]
[Round "4"]
[White "VladimirKramnik"]
[Black "chenxiaoyuer"]
[Result "0-1"]
[WhiteElo "2915"]
[BlackElo "2766"]
[TimeControl "180+1"]
[EndTime "14:39:57 PST"]
[Termination "chenxiaoyuer won on time"]

1. c4 {[%clk 0:03:00.9]} 1... Nf6 {[%clk 0:03:00]} 2. Nc3 {[%clk 0:03:01]} 2...
g6 {[%clk 0:03:00.4]} 3. g3 {[%clk 0:03:00.5]} 3... Bg7 {[%clk 0:03:00.7]} 4.
Bg2 {[%clk 0:03:01.1]} 4... O-O {[%clk 0:03:01.2]} 5. d3 {[%clk 0:03:00.7]} 5...
d6 {[%clk 0:03:00.2]} 6. Rb1 {[%clk 0:03:00.6]} 6... a5 {[%clk 0:02:58.6]} 7. a3
{[%clk 0:03:00.4]} 7... e5 {[%clk 0:02:58.2]} 8. b4 {[%clk 0:02:58.5]} 8... axb4
{[%clk 0:02:59.1]} 9. axb4 {[%clk 0:02:58.6]} 9... c6 {[%clk 0:02:56.7]} 10. b5
{[%clk 0:02:58.7]} 10... Re8 {[%clk 0:02:55.8]} 11. bxc6 {[%clk 0:02:52]} 11...
bxc6 {[%clk 0:02:56.1]} 12. Bg5 {[%clk 0:02:46.4]} 12... Qa5 {[%clk 0:02:28.3]}
13. Bd2 {[%clk 0:02:42.4]} 13... Be6 {[%clk 0:02:12.4]} 14. Nf3 {[%clk
0:02:38.9]} 14... Qc7 {[%clk 0:01:56.4]} 15. O-O {[%clk 0:02:37.2]} 15... Nbd7
{[%clk 0:01:48]} 16. Ng5 {[%clk 0:02:31.2]} 16... Bf5 {[%clk 0:01:44.9]} 17. h3
{[%clk 0:02:25.3]} 17... h6 {[%clk 0:01:40.9]} 18. e4 {[%clk 0:02:20.6]} 18...
Be6 {[%clk 0:01:35.6]} 19. Nxe6 {[%clk 0:02:19.9]} 19... Rxe6 {[%clk 0:01:36.5]}
20. f4 {[%clk 0:02:16.3]} 20... Ree8 {[%clk 0:01:34.9]} 21. f5 {[%clk
0:02:11.8]} 21... Reb8 {[%clk 0:01:32.7]} 22. Kh2 {[%clk 0:01:59.2]} 22... Rxb1
{[%clk 0:01:24.2]} 23. Qxb1 {[%clk 0:01:59.7]} 23... Nc5 {[%clk 0:01:23.3]} 24.
Be3 {[%clk 0:01:50.5]} 24... Qa5 {[%clk 0:01:18]} 25. Qc2 {[%clk 0:01:46.8]}
25... Rb8 {[%clk 0:01:16.3]} 26. fxg6 {[%clk 0:01:35.4]} 26... fxg6 {[%clk
0:01:16.1]} 27. Ne2 {[%clk 0:01:14]} 27... Qa4 {[%clk 0:01:01.6]} 28. Qxa4
{[%clk 0:01:04.8]} 28... Nxa4 {[%clk 0:01:02.5]} 29. Ra1 {[%clk 0:00:45.2]}
29... Nb2 {[%clk 0:01:00.1]} 30. Nc1 {[%clk 0:00:38.7]} 30... Bf8 {[%clk
0:00:37.6]} 31. Bf3 {[%clk 0:00:35.3]} 31... Nd7 {[%clk 0:00:33.9]} 32. Bg4
{[%clk 0:00:29.1]} 32... Nc5 {[%clk 0:00:32]} 33. Bxc5 {[%clk 0:00:29]} 33...
dxc5 {[%clk 0:00:32.9]} 34. Be6+ {[%clk 0:00:28.3]} 34... Kg7 {[%clk 0:00:31.6]}
35. Ra7+ {[%clk 0:00:25.1]} 35... Kf6 {[%clk 0:00:31]} 36. Bg4 {[%clk
0:00:23.2]} 36... h5 {[%clk 0:00:24.1]} 37. Be2 {[%clk 0:00:23.1]} 37... Bh6
{[%clk 0:00:21.2]} 38. Na2 {[%clk 0:00:23.6]} 38... Rd8 {[%clk 0:00:21.3]} 39.
Ra6 {[%clk 0:00:21.6]} 39... Rd6 {[%clk 0:00:21]} 40. Nc3 {[%clk 0:00:20.1]}
40... Nxd3 {[%clk 0:00:20.3]} 41. Nd5+ {[%clk 0:00:16.8]} 41... Ke6 {[%clk
0:00:16.8]} 42. Bxd3 {[%clk 0:00:16.9]} 42... cxd5 {[%clk 0:00:16.9]} 43. exd5+
{[%clk 0:00:17.3]} 43... Ke7 {[%clk 0:00:16.3]} 44. Ra7+ {[%clk 0:00:16.7]}
44... Kf6 {[%clk 0:00:16]} 45. Rc7 {[%clk 0:00:15]} 45... e4 {[%clk 0:00:15.6]}
46. Bxe4 {[%clk 0:00:14]} 46... Ke5 {[%clk 0:00:15.3]} 47. Bg2 {[%clk
0:00:10.2]} 47... Kd4 {[%clk 0:00:14.4]} 48. Bf1 {[%clk 0:00:09.3]} 48... Rf6
{[%clk 0:00:14.7]} 49. Kg2 {[%clk 0:00:08.5]} 49... Be3 {[%clk 0:00:14.8]} 50.
g4 {[%clk 0:00:02]} 50... Rf2+ {[%clk 0:00:14.3]} 51. Kg3 {[%clk 0:00:02.2]}
51... Rxf1 {[%clk 0:00:14.8]} 52. Kh4 {[%clk 0:00:01.6]} 52... hxg4 {[%clk
0:00:14.2]} 53. Kxg4 {[%clk 0:00:01.4]} 53... Rg1+ {[%clk 0:00:13.9]} 54. Kf3
{[%clk 0:00:02]} 54... Rf1+ {[%clk 0:00:12.4]} 55. Ke2 {[%clk 0:00:01.5]} 55...
Rf2+ {[%clk 0:00:12.7]} 56. Ke1 {[%clk 0:00:02]} 56... Kd3 {[%clk 0:00:12.7]}
57. Ra7 {[%clk 0:00:01.6]} 57... Rh2 {[%clk 0:00:11.8]} 58. Ra3+ {[%clk
0:00:01.4]} 58... Ke4 {[%clk 0:00:12.5]} 59. d6 {[%clk 0:00:01.1]} 59... Rd2
{[%clk 0:00:12.7]} 0-1

[Event "Late-Titled-Tuesday-Blitz-February-06-2024"]
[Site "Chess.com"]
[Date "2024.02.06"]
[Round "4"]
[White "bipe137"]
[Black "Alex_Sahakyan2006"]
[Result "0-1"]
[WhiteElo "2585"]
[BlackElo "2891"]
[TimeControl "180+1"]
[EndTime "14:39:58 PST"]
[Termination "Alex_Sahakyan2006 won by resignation"]

1. d4 {[%clk 0:03:00.9]} 1... Nf6 {[%clk 0:02:56]} 2. c4 {[%clk 0:03:00.5]} 2...
c5 {[%clk 0:02:54.7]} 3. d5 {[%clk 0:03:00.2]} 3... b5 {[%clk 0:02:55.2]} 4. Nf3
{[%clk 0:02:59.4]} 4... g6 {[%clk 0:02:50.8]} 5. Qc2 {[%clk 0:02:58.3]} 5... Bg7
{[%clk 0:02:48.9]} 6. e4 {[%clk 0:02:58.7]} 6... d6 {[%clk 0:02:48.9]} 7. cxb5
{[%clk 0:02:58.1]} 7... O-O {[%clk 0:02:47]} 8. Nc3 {[%clk 0:02:56.6]} 8... a6
{[%clk 0:02:41.8]} 9. a4 {[%clk 0:02:55.9]} 9... axb5 {[%clk 0:02:22.3]} 10.
Bxb5 {[%clk 0:02:54.4]} 10... Ba6 {[%clk 0:02:11.6]} 11. O-O {[%clk 0:02:52.1]}
11... Bxb5 {[%clk 0:02:10.2]} 12. Nxb5 {[%clk 0:02:53]} 12... Na6 {[%clk
0:02:10.2]} 13. Bd2 {[%clk 0:02:52.9]} 13... Nc7 {[%clk 0:02:01.9]} 14. Nxc7
{[%clk 0:02:52.2]} 14... Qxc7 {[%clk 0:02:01.4]} 15. Bc3 {[%clk 0:02:52.8]}
15... Rfb8 {[%clk 0:02:00.6]} 16. Nd2 {[%clk 0:02:51.9]} 16... Nd7 {[%clk
0:01:55]} 17. Bxg7 {[%clk 0:02:51.2]} 17... Kxg7 {[%clk 0:01:55.9]} 18. b3
{[%clk 0:02:49.6]} 18... Rb4 {[%clk 0:01:54.3]} 19. f4 {[%clk 0:02:39]} 19...
Rab8 {[%clk 0:01:37.5]} 20. Rf3 {[%clk 0:02:35.8]} 20... Rd4 {[%clk 0:01:15.1]}
21. Rd3 {[%clk 0:02:31.3]} 21... Qa7 {[%clk 0:01:13.8]} 22. Kh1 {[%clk
0:02:22.1]} 22... Nf6 {[%clk 0:00:57.6]} 23. Re1 {[%clk 0:02:17.6]} 23... Ng4
{[%clk 0:00:46.8]} 24. Re2 {[%clk 0:02:13.1]} 24... c4 {[%clk 0:00:34.6]} 25.
Rxd4 {[%clk 0:01:59.1]} 25... Qxd4 {[%clk 0:00:35.5]} 26. h3 {[%clk 0:01:44.8]}
26... cxb3 {[%clk 0:00:24.7]} 27. Nxb3 {[%clk 0:01:42.8]} 27... Rxb3 {[%clk
0:00:20.6]} 28. hxg4 {[%clk 0:01:37.6]} 28... Qxa4 {[%clk 0:00:18.7]} 29. Kh2
{[%clk 0:01:35.7]} 29... h6 {[%clk 0:00:13.9]} 30. Qc7 {[%clk 0:01:25.6]} 30...
Qb5 {[%clk 0:00:10.1]} 31. Rf2 {[%clk 0:01:11.8]} 31... Rb1 {[%clk 0:00:04.5]}
32. Qc3+ {[%clk 0:01:04.3]} 32... Kg8 {[%clk 0:00:03.9]} 33. g5 {[%clk
0:01:04.1]} 33... hxg5 {[%clk 0:00:03.9]} 34. fxg5 {[%clk 0:01:04.7]} 34... Qb8
{[%clk 0:00:03.2]} 35. Qf3 {[%clk 0:00:57.6]} 35... Qf8 {[%clk 0:00:02.1]} 36.
Qf4 {[%clk 0:00:57.3]} 36... Qg7 {[%clk 0:00:02.6]} 37. Rf3 {[%clk 0:00:57.4]}
37... Qe5 {[%clk 0:00:02.4]} 38. Kg3 {[%clk 0:00:52.2]} 38... Re1 {[%clk
0:00:03]} 39. Qxe5 {[%clk 0:00:33.4]} 39... dxe5 {[%clk 0:00:03.9]} 40. Rd3
{[%clk 0:00:29.5]} 40... Rxe4 {[%clk 0:00:04]} 41. d6 {[%clk 0:00:30.4]} 41...
exd6 {[%clk 0:00:04.8]} 42. Rxd6 {[%clk 0:00:30.8]} 42... Kg7 {[%clk 0:00:05.6]}
43. Kf3 {[%clk 0:00:29.8]} 43... Rf4+ {[%clk 0:00:06.1]} 44. Kg3 {[%clk
0:00:30.2]} 44... Rf5 {[%clk 0:00:07]} 45. Kg4 {[%clk 0:00:29.8]} 45... Rf4+
{[%clk 0:00:07.7]} 46. Kg3 {[%clk 0:00:30.1]} 46... Kf8 {[%clk 0:00:08.6]} 47.
Rd7 {[%clk 0:00:29]} 47... Ke8 {[%clk 0:00:08.7]} 48. Rd5 {[%clk 0:00:28.2]}
48... Rf5 {[%clk 0:00:08.8]} 49. Kg4 {[%clk 0:00:27.4]} 49... Ke7 {[%clk
0:00:09.5]} 50. Ra5 {[%clk 0:00:27.5]} 50... Rf4+ {[%clk 0:00:09.2]} 51. Kg3
{[%clk 0:00:27]} 51... Ke6 {[%clk 0:00:10.1]} 52. Ra7 {[%clk 0:00:26.3]} 52...
Rf5 {[%clk 0:00:09.8]} 53. Kg4 {[%clk 0:00:26.3]} 53... Rf4+ {[%clk 0:00:10.4]}
54. Kg3 {[%clk 0:00:26.5]} 54... Rf1 {[%clk 0:00:09.9]} 55. Kg4 {[%clk
0:00:25.9]} 55... Kd5 {[%clk 0:00:09.6]} 56. Ra5+ {[%clk 0:00:23.4]} 56... Ke6
{[%clk 0:00:09.9]} 57. Ra6+ {[%clk 0:00:22.9]} 57... Ke7 {[%clk 0:00:10.4]} 58.
Ra7+ {[%clk 0:00:23]} 58... Kf8 {[%clk 0:00:11.2]} 59. Ra5 {[%clk 0:00:23.3]}
59... Re1 {[%clk 0:00:09.8]} 60. Kf3 {[%clk 0:00:22.6]} 60... Ke7 {[%clk
0:00:09.3]} 61. g4 {[%clk 0:00:21.2]} 61... Ke6 {[%clk 0:00:08.2]} 62. Ra6+
{[%clk 0:00:21.1]} 62... Ke7 {[%clk 0:00:08.8]} 63. Ra7+ {[%clk 0:00:21.2]}
63... Kf8 {[%clk 0:00:09.4]} 64. Ra4 {[%clk 0:00:20.3]} 64... Rf1+ {[%clk
0:00:07.2]} 65. Ke4 {[%clk 0:00:20.2]} 65... Rf4+ {[%clk 0:00:07.8]} 0-1